bitfinex/quotes_BTCUSD_20241222
["timestamp","ask_amount","ask_price","bid_price","bid_amount"]
[1734886650068,0.22033653,95709.0,95701.0,0.0482]
[1734886650321,0.22033653,95709.0,95701.0,0.1304]
[1734886650695,0.01136953,95708.0,95701.0,0.1304]
[1734886650941,0.01136953,95707.0,95701.0,0.1304]
[1734886651467,0.00010172,95711.0,95702.0,0.208982]
[1734886651468,0.01136953,95706.0,95702.0,0.208982]
[1734886652016,0.01136953,95705.0,95702.0,0.208982]
[1734886652218,0.01136953,95705.0,95701.0,0.1264]
[1734886652474,0.01136953,95704.0,95701.0,0.1264]
[1734886653193,0.01136953,95703.0,95701.0,0.1264]
[1734886653345,0.01136953,95703.0,95701.0,0.1244]
[1734886653752,0.208975,95705.0,95702.0,0.003]
[1734886653954,0.00078406,95704.0,95701.0,0.1244]
[1734886654327,0.2202153,95703.0,95701.0,0.003]
[1734886654532,0.2202153,95703.0,95698.0,0.45811321]
[1734886654733,0.2202153,95703.0,95693.0,0.0822]
[1734886654734,0.00078406,95702.0,95693.0,0.0822]
[1734886654862,0.208984,95701.0,95693.0,0.0822]
[1734886655060,0.208984,95701.0,95688.0,0.45811321]
[1734886655257,0.208984,95701.0,95687.0,0.0822856]
[1734886655458,0.2202203,95701.0,95687.0,0.0822856]
[1734886656941,0.2202203,95701.0,95700.0,0.0001456]
[1734886657079,0.2222203,95701.0,95700.0,0.0001456]
[1734886657422,0.2222203,95701.0,95687.0,0.0764312]
[1734886657423,0.209003,95693.0,95687.0,0.0764312]
[1734886657581,0.00078406,95692.0,95687.0,0.0764312]
[1734886658169,0.209006,95691.0,95687.0,0.0764312]
[1734886658375,0.00078406,95690.0,95687.0,0.0764312]
[1734886658683,0.20901,95689.0,95687.0,0.0764312]
[1734886658879,0.00078406,95688.0,95687.0,0.0764312]
[1734886659080,0.00078406,95688.0,95680.0,8.56e-05]
[1734886659081,0.209014,95687.0,95680.0,8.56e-05]
[1734886659326,0.00078406,95686.0,95680.0,8.56e-05]
[1734886659536,0.01202036,95686.0,95680.0,8.56e-05]
[1734886660766,0.20901,95689.0,95680.0,8.56e-05]
[1734886660967,0.209012,95688.0,95680.0,8.56e-05]
[1734886661163,0.001,95686.0,95680.0,8.56e-05]
[1734886662360,0.001,95686.0,95674.0,0.0777]
[1734886662361,0.418038,95685.0,95674.0,0.0719568]
[1734886662581,0.209028,95681.0,95674.0,0.0719568]
[1734886663821,0.209028,95681.0,95674.0,0.07249926]
[1734886666361,0.209038,95676.0,95674.0,0.00054246]
[1734886666569,0.209038,95676.0,95674.0,0.00254246]
[1734886667404,0.1013084,95675.0,95674.0,0.00254246]
[1734886667579,0.209065,95664.0,95661.0,0.07845606]
[1734886667817,0.209065,95664.0,95661.0,0.07856953]
[1734886667969,0.1,95689.0,95662.0,0.0457]
[1734886668175,0.15,95706.0,95682.0,0.0457]
[1734886668385,0.208992,95698.0,95682.0,0.0457]
[1734886668552,0.1013084,95697.0,95682.0,0.0457]
[1734886668746,0.1013084,95697.0,95684.0,0.418042]
[1734886669043,0.1013084,95697.0,95684.0,0.209021]
[1734886669250,0.208995,95696.0,95684.0,0.209021]
[1734886669579,0.208995,95696.0,95682.0,0.0457]
[1734886670118,0.1013084,95697.0,95683.0,0.209023]
[1734886670478,0.1013084,95697.0,95684.0,0.0814]
[1734886671337,0.208995,95696.0,95684.0,0.0814]
[1734886671684,0.1073084,95697.0,95685.0,0.209019]
[1734886671904,0.1013084,95697.0,95685.0,0.209019]
[1734886672105,0.1053084,95697.0,95685.0,0.209019]
[1734886672304,0.1013084,95697.0,95685.0,0.203019]
[1734886672745,0.004,95696.0,95685.0,0.203019]
[1734886672906,0.1013084,95697.0,95685.0,0.203019]
[1734886673348,0.22007916,95696.0,95684.0,0.0814]
[1734886673553,0.209003,95693.0,95684.0,0.0814]
[1734886674227,0.01108416,95692.0,95684.0,0.0814]
[1734886674724,0.01108416,95691.0,95684.0,0.499441]
[1734886674915,0.01108416,95691.0,95684.0,0.0814]
[1734886675089,0.01108416,95691.0,95685.0,0.209018]
[1734886675274,0.01108416,95690.0,95686.0,0.209016]
[1734886675914,0.01108416,95689.0,95686.0,0.209016]
[1734886676578,0.01108416,95688.0,95686.0,0.209016]
[1734886677149,0.01108416,95687.0,95686.0,0.209016]
[1734886677356,0.01108416,95687.0,95686.0,0.203016]
[1734886678806,0.1013084,95697.0,95686.0,0.203016]
[1734886679007,0.1013084,95697.0,95686.0,0.204016]
[1734886679371,0.01110473,95696.0,95686.0,0.204016]
[1734886679773,0.01110473,95696.0,95690.0,0.209006]
[1734886679972,0.01110473,95695.0,95691.0,0.209006]
[1734886680592,0.01110473,95694.0,95691.0,0.209006]
[1734886680937,0.01164604,95694.0,95693.0,0.0494]
[1734886681134,0.00054131,95694.0,95693.0,0.0494]
[1734886681352,0.00054131,95694.0,95693.0,0.258401]
[1734886681904,0.01165383,95694.0,95693.0,0.0494]
[1734886682236,0.01265383,95694.0,95682.0,0.258425]
[1734886682431,0.01265383,95694.0,95684.0,0.209021]
[1734886682920,0.01265383,95694.0,95688.0,0.209012]
[1734886683068,0.01265383,95694.0,95683.0,0.0786]
[1734886683069,0.01111252,95693.0,95683.0,0.0786]
[1734886683265,0.01111252,95693.0,95692.0,0.0767]
[1734886683453,0.01111252,95693.0,95692.0,0.0707]
[1734886684533,0.01111252,95693.0,95672.0,0.0467]
[1734886684534,0.15,95692.0,95672.0,0.0467]
[1734886684821,0.209032,95679.0,95663.0,0.209067]
[1734886685198,0.15,95690.0,95663.0,0.418134]
[1734886685549,0.209042,95675.0,95663.0,0.209067]
[1734886686110,0.01111252,95674.0,95672.0,0.001]
[1734886686717,0.01111252,95673.0,95672.0,0.001]
[1734886687230,0.01111252,95673.0,95663.0,0.280767]
[1734886688257,0.01111252,95672.0,95663.0,0.280767]
[1734886688458,0.01111252,95672.0,95663.0,0.0767]
[1734886688831,0.01111252,95671.0,95664.0,0.209065]
[1734886689590,0.01111252,95670.0,95664.0,0.209065]
[1734886690129,0.01111252,95669.0,95664.0,0.209065]
[1734886690818,0.01111252,95668.0,95664.0,0.209065]
[1734886691022,0.01111252,95668.0,95664.0,0.41813]
[1734886691394,0.01111252,95667.0,95664.0,0.41813]
[1734886691954,0.01111252,95666.0,95664.0,0.41813]
[1734886692338,0.01111252,95666.0,95664.0,0.41213]
[1734886692546,0.01111252,95665.0,95664.0,0.41213]
[1734886693723,0.01111252,95665.0,95664.0,0.41224347]
[1734886693923,0.01111252,95665.0,95664.0,0.41324347]
[1734886694185,0.01111252,95665.0,95664.0,0.41332917]
[1734886694381,0.01111252,95665.0,95664.0,0.41232917]
[1734886694619,0.01111252,95665.0,95664.0,0.41432917]
[1734886694826,0.17913424,95679.0,95664.0,0.41432917]
[1734886695206,0.38816724,95679.0,95664.0,0.41432917]
[1734886695344,0.38816724,95679.0,95664.0,0.20526417]
[1734886695554,0.38816724,95679.0,95667.0,0.209056]
[1734886696138,0.15,95690.0,95666.0,0.0767]
[1734886696277,0.15,95690.0,95679.0,0.0767]
[1734886696478,0.01061842,95691.0,95679.0,0.0767]
[1734886696680,0.09363665,95693.0,95689.0,0.20901]
[1734886696883,0.09363665,95693.0,95681.0,0.209027]
[1734886697106,0.09363665,95693.0,95685.0,0.209017]
[1734886697306,0.09363665,95693.0,95685.0,0.203017]
[1734886698078,0.10163665,95693.0,95689.0,0.001]
[1734886698268,0.15,95698.0,95685.0,0.203017]
[1734886698428,0.15,95695.0,95685.0,0.203017]
[1734886698641,0.008,95693.0,95685.0,0.204017]
[1734886698845,0.15,95695.0,95685.0,0.203017]
[1734886699063,0.004,95693.0,95686.0,0.1234]
[1734886699254,0.004,95693.0,95692.0,0.285703]
[1734886700629,0.0001714,95697.0,95696.0,0.208995]
[1734886701092,0.0001714,95697.0,95692.0,0.285703]
[1734886701894,0.00071271,95697.0,95692.0,0.285703]
[1734886702108,0.00071271,95697.0,95696.0,0.211995]
[1734886702263,0.00071271,95697.0,95696.0,0.205995]
[1734886702609,0.00071271,95697.0,95696.0,0.202995]
[1734886704303,0.00071271,95697.0,95696.0,0.205995]
[1734886705091,0.00071271,95697.0,95696.0,0.202995]
[1734886705549,0.00171271,95697.0,95696.0,0.202995]
[1734886706701,0.00071271,95697.0,95696.0,0.202995]
[1734886707247,0.00071271,95697.0,95696.0,0.205995]
[1734886707444,0.00071271,95697.0,95696.0,0.77730821]
[1734886707649,0.00071271,95697.0,95696.0,0.78330821]
[1734886707986,0.00071271,95697.0,95696.0,0.77730821]
[1734886708227,0.00171271,95697.0,95696.0,0.78430821]
[1734886708427,0.00171271,95697.0,95696.0,0.79469445]
[1734886709996,0.00171271,95697.0,95696.0,0.89600285]
[1734886710887,0.00171271,95697.0,95696.0,0.91682803]
[1734886712418,0.00171271,95697.0,95696.0,0.91082803]
[1734886712868,0.01108691,95730.0,95704.0,0.60331321]
[1734886713061,0.01108691,95730.0,95729.0,0.208923]
[1734886713278,9.1e-07,95733.0,95729.0,0.1467084]
[1734886713478,9.1e-07,95733.0,95730.0,0.3880728]
[1734886713637,0.0001712,95748.0,95733.0,0.3722]
[1734886713844,0.0001712,95748.0,95747.0,0.285683]
[1734886714038,0.0001712,95748.0,95747.0,0.4323914]
[1734886714410,0.0001712,95748.0,95747.0,0.91350461]
[1734886715097,0.0001712,95748.0,95747.0,0.91282469]
[1734886715311,0.0001712,95748.0,95747.0,0.81151629]
[1734886715503,0.0001712,95748.0,95747.0,0.79019621]
[1734886716373,0.0001712,95748.0,95747.0,0.80075074]
[1734886716528,0.0001712,95748.0,95747.0,0.79975074]
[1734886716929,0.0001712,95748.0,95747.0,0.80475074]
[1734886717336,0.0001712,95748.0,95747.0,0.79875074]
[1734886718458,0.0001712,95748.0,95747.0,0.90005914]
[1734886722343,0.0001712,95748.0,95747.0,0.89405914]
[1734886727509,0.0001712,95748.0,95747.0,0.88805914]
[1734886732454,0.0001712,95748.0,95747.0,0.88205914]
[1734886733849,0.01086894,95776.0,95769.0,0.66694821]
[1734886733980,0.01086894,95776.0,95769.0,0.330735]
[1734886734180,8.56e-05,95781.0,95769.0,0.330735]
[1734886735006,8.56e-05,95781.0,95769.0,0.338735]
[1734886736546,8.56e-05,95781.0,95769.0,0.330735]
[1734886736841,8.56e-05,95781.0,95769.0,0.338735]
[1734886737473,8.56e-05,95781.0,95769.0,0.34309794]
[1734886737680,0.01086894,95780.0,95769.0,0.34309794]
[1734886738122,0.01086894,95779.0,95769.0,0.34309794]
[1734886738334,0.01086894,95779.0,95769.0,0.80121115]
[1734886738763,0.01086894,95778.0,95769.0,0.80121115]
[1734886740275,0.01086894,95777.0,95769.0,0.80121115]
[1734886741436,8.56e-05,95781.0,95769.0,0.80121115]
[1734886742655,0.01084458,95770.0,95769.0,0.80121115]
[1734886743384,0.01084458,95770.0,95769.0,0.79521115]
[1734886745928,0.01084458,95770.0,95769.0,0.79529675]
[1734886747068,0.01084458,95770.0,95769.0,0.89660515]
[1734886747292,0.01084458,95770.0,95769.0,0.92895401]
[1734886747739,0.0001714,95770.0,95769.0,0.92895401]
[1734886750098,0.0001714,95770.0,95769.0,1.45104401]
[1734886752052,4e-07,95770.0,95769.0,1.45104401]
[1734886752624,4e-07,95770.0,95769.0,1.44304401]
[1734886753034,4e-07,95770.0,95769.0,1.45204401]
[1734886756383,4e-07,95770.0,95769.0,1.44304401]
[1734886757202,4e-07,95770.0,95769.0,1.44404401]
[1734886757997,4e-07,95770.0,95769.0,1.41169515]
[1734886758426,4e-07,95770.0,95769.0,1.18848675]
[1734886758657,4e-07,95770.0,95769.0,1.31653665]
[1734886759005,0.01067155,95770.0,95769.0,1.31653665]
[1734886759388,0.01067155,95770.0,95769.0,0.85842344]
[1734886759871,0.01067155,95770.0,95769.0,0.7190106]
[1734886760072,0.01167155,95770.0,95769.0,0.5291756]
[1734886760910,0.01067155,95770.0,95769.0,0.5221756]
[1734886761319,0.01067155,95770.0,95769.0,0.5261756]
[1734886761519,0.01067155,95770.0,95769.0,0.5221756]
[1734886762330,0.01067155,95770.0,95769.0,0.5161756]
[1734886762990,0.01067155,95770.0,95769.0,0.5171756]
[1734886765945,0.01067155,95770.0,95769.0,0.5161756]
[1734886766344,0.01167155,95770.0,95769.0,0.5161756]
[1734886766572,0.01067155,95770.0,95769.0,0.5161756]
[1734886766982,0.01367155,95770.0,95769.0,0.5161756]
[1734886767184,0.01067155,95770.0,95769.0,0.5161756]
[1734886767387,0.01067155,95770.0,95769.0,0.5101756]
[1734886767565,0.01467155,95770.0,95769.0,0.5101756]
[1734886767720,0.01067155,95770.0,95769.0,0.5101756]
[1734886769303,0.01567155,95770.0,95769.0,0.5101756]
[1734886769656,0.01567155,95770.0,95769.0,0.5102612]
[1734886772309,0.01567155,95770.0,95769.0,0.5042612]
[1734886773435,0.29907995,95770.0,95769.0,0.5042612]
[1734886773661,0.43447995,95770.0,95769.0,0.5042612]
[1734886774443,0.44490719,95770.0,95769.0,0.5042612]
[1734886774650,0.4553607,95770.0,95769.0,0.5042612]
[1734886777237,0.44490719,95770.0,95769.0,0.5042612]
[1734886777641,0.44490719,95770.0,95769.0,0.4982612]
[1734886778199,0.34490719,95770.0,95769.0,0.4982612]
[1734886780083,0.34496135,95770.0,95769.0,0.4982612]
[1734886780215,0.33256135,95770.0,95769.0,0.4982612]
[1734886780418,0.26703411,95770.0,95769.0,0.4982612]
[1734886782498,0.26703411,95770.0,95769.0,0.4922612]
[1734886783369,0.25636296,95770.0,95769.0,0.4922612]
[1734886784087,0.00505456,95770.0,95769.0,0.4922612]
[1734886784336,0.01570667,95770.0,95769.0,0.4922612]
[1734886786250,0.00505456,95770.0,95769.0,0.4922612]
[1734886787429,0.00505456,95770.0,95769.0,0.4862612]
[1734886791898,0.00505456,95770.0,95769.0,0.5624612]
[1734886792325,0.00505456,95770.0,95769.0,0.5564612]
[1734886797489,0.00505456,95770.0,95769.0,0.5504612]
[1734886803236,0.00505456,95770.0,95769.0,0.5444612]
[1734886807068,5.456e-05,95770.0,95769.0,0.5444612]
[1734886807475,0.00505456,95770.0,95769.0,0.5384612]
[1734886807715,5.456e-05,95770.0,95769.0,0.5384612]
[1734886808161,0.00205456,95770.0,95769.0,0.5384612]
[1734886808400,0.00205456,95770.0,95769.0,0.5861612]
[1734886810397,5.456e-05,95770.0,95769.0,0.5861612]
[1734886812333,5.456e-05,95770.0,95769.0,0.5801612]
[1734886814057,5.456e-05,95770.0,95769.0,0.5811612]
[1734886814267,5.456e-05,95770.0,95769.0,0.5801612]
[1734886814486,5.456e-05,95770.0,95769.0,0.4562612]
[1734886814694,0.25136296,95770.0,95769.0,0.4582612]
[1734886814901,0.38346296,95770.0,95769.0,0.4582612]
[1734886815127,0.40646296,95770.0,95769.0,0.4582612]
[1734886815552,0.41687588,95770.0,95769.0,0.4582612]
[1734886816396,0.41687588,95770.0,95769.0,0.4562612]
[1734886817400,0.42587588,95770.0,95769.0,0.4512612]
[1734886817799,0.42587588,95770.0,95769.0,0.0010856]
[1734886818387,0.53827588,95770.0,95769.0,0.0010856]
[1734886818586,0.55029016,95770.0,95769.0,6e-07]
[1734886819212,0.56096603,95770.0,95769.0,6e-07]
[1734886819625,0.1,95753.0,95731.0,0.0787]
[1734886819842,0.15,95751.0,95731.0,0.0787]
[1734886820048,0.208881,95748.0,95731.0,0.0787]
[1734886820249,0.4601894,95748.0,95731.0,0.0787]
[1734886820453,0.47086527,95748.0,95731.0,0.0787]
[1734886821207,0.11198427,95748.0,95747.0,0.0797856]
[1734886821409,0.01067587,95748.0,95747.0,0.1274856]
[1734886821612,0.01067587,95748.0,95747.0,0.1264856]
[1734886822061,0.01567587,95748.0,95747.0,0.1264856]
[1734886822214,0.01567587,95748.0,95747.0,0.12752986]
[1734886822419,0.01567587,95748.0,95747.0,0.1204856]
[1734886822863,0.01067587,95760.0,95747.0,0.10235268]
[1734886823077,0.01067587,95760.0,95748.0,0.04704424]
[1734886823281,0.09380733,95761.0,95759.0,0.254857]
[1734886823714,0.01067587,95762.0,95759.0,0.463714]
[1734886823948,0.01058691,95784.0,95759.0,0.254857]
[1734886824129,8.56e-05,95781.0,95767.0,0.208839]
[1734886824340,0.01066012,95769.0,95767.0,0.208839]
[1734886824528,0.01066012,95769.0,95765.0,0.208843]
[1734886824888,0.2088966,95781.0,95765.0,0.208843]
[1734886824889,0.01066012,95768.0,95765.0,0.208843]
[1734886825319,0.01066012,95768.0,95767.0,0.20884]
[1734886825549,0.01066012,95769.0,95767.0,0.20884]
[1734886826117,0.01066012,95768.0,95767.0,0.20884]
[1734886826543,0.01066012,95768.0,95767.0,0.33104]
[1734886826792,0.20888856,95770.0,95754.0,0.1222]
[1734886826958,0.208835,95769.0,95767.0,0.003]
[1734886827358,0.01066012,95768.0,95754.0,0.1192]
[1734886827559,0.01066012,95768.0,95767.0,0.005]
[1734886828120,0.20884,95767.0,95754.0,0.1192]
[1734886828273,0.20884,95767.0,95754.0,0.1192856]
[1734886828695,0.01066012,95766.0,95754.0,0.1192856]
[1734886829254,0.21950412,95765.0,95754.0,0.1192856]
[1734886829705,0.01066012,95764.0,95754.0,0.1192856]
[1734886830528,0.01066012,95763.0,95754.0,0.1192856]
[1734886831108,0.01066012,95762.0,95755.0,0.208866]
[1734886831683,0.01066012,95761.0,95754.0,0.1192856]
[1734886831907,0.01066012,95761.0,95755.0,0.208866]
[1734886832287,0.01066012,95760.0,95754.0,0.1132856]
[1734886833050,0.01066012,95759.0,95754.0,0.1132856]
[1734886833253,0.208859,95758.0,95754.0,0.1132856]
[1734886833452,0.21951912,95758.0,95754.0,0.1132856]
[1734886834057,0.208864,95756.0,95754.0,0.1132856]
[1734886834534,0.01066012,95755.0,95754.0,8.56e-05]
[1734886834756,0.36196852,95755.0,95754.0,0.0010856]
[1734886834959,0.38496852,95755.0,95754.0,0.0010856]
[1734886835163,0.3970343,95755.0,95754.0,0.0010856]
[1734886835587,0.41803716,95755.0,95754.0,0.0010856]
[1734886835791,0.41803716,95755.0,95754.0,8.56e-05]
[1734886836419,0.51803716,95755.0,95754.0,6e-07]
[1734886836797,0.52703716,95755.0,95754.0,0.0010006]
[1734886837200,0.66774816,95755.0,95754.0,0.0010006]
[1734886837410,0.208936,95723.0,95722.0,0.0712006]
[1734886837820,0.208949,95717.0,95716.0,0.046]
[1734886838033,0.21959612,95723.0,95716.0,0.046]
[1734886838235,0.42853212,95723.0,95716.0,0.046]
[1734886838528,0.208945,95719.0,95716.0,0.046]
[1734886838663,0.208945,95719.0,95716.0,0.04611347]
[1734886838664,0.41789,95719.0,95716.0,0.04611347]
[1734886839091,0.01066012,95718.0,95716.0,0.04611347]
[1734886839303,0.208949,95717.0,95716.0,0.04611347]
[1734886839995,0.208949,95717.0,95716.0,0.05011347]
[1734886840195,0.208949,95717.0,95716.0,0.04611347]
[1734886840600,0.208949,95717.0,95716.0,0.04719907]
[1734886841807,0.01066012,95718.0,95716.0,0.00119907]
[1734886841980,0.01066012,95718.0,95717.0,0.1222]
[1734886842204,0.01066012,95718.0,95717.0,0.331149]
[1734886842392,0.01041038,95750.0,95721.0,0.208939]
[1734886842393,0.208897,95741.0,95721.0,0.208939]
[1734886842593,0.2513084,95740.0,95717.0,0.046]
[1734886842802,0.2513084,95740.0,95718.0,0.00104462]
[1734886842951,0.26196852,95740.0,95718.0,0.00104462]
[1734886843390,0.01066012,95739.0,95717.0,0.049]
[1734886843592,0.208905,95737.0,95717.0,0.046]
[1734886843812,0.208939,95722.0,95717.0,0.046]
[1734886844022,0.15,95735.0,95716.0,0.00019907]
[1734886844224,0.208949,95717.0,95716.0,0.00019907]
[1734886844426,0.21960212,95721.0,95716.0,0.00019907]
[1734886844622,0.208942,95720.0,95716.0,0.00019907]
[1734886844840,0.21960212,95720.0,95716.0,0.00019907]
[1734886845412,0.208942,95720.0,95716.0,0.00019907]
[1734886847068,0.5191944,95720.0,95716.0,0.00019907]
[1734886847309,0.208953,95715.0,95713.0,0.07639907]
[1734886849368,0.01066012,95719.0,95713.0,0.07839907]
[1734886850306,0.10136252,95720.0,95713.0,0.07639907]
[1734886850551,0.10136252,95720.0,95713.0,0.07739907]
[1734886851530,5.412e-05,95720.0,95716.0,0.20895]
[1734886851961,5.412e-05,95720.0,95716.0,0.417901]
[1734886852371,5.412e-05,95720.0,95716.0,0.411901]
[1734886852574,5.412e-05,95720.0,95717.0,0.0471]
[1734886852780,5.412e-05,95720.0,95719.0,0.0822]
[1734886852984,5.412e-05,95720.0,95719.0,0.1293]
[1734886853622,5.412e-05,95720.0,95719.0,0.2306084]
[1734886854242,0.21951112,95762.0,95744.0,0.1293]
[1734886854464,0.208862,95757.0,95744.0,0.1293]
[1734886854675,0.1013084,95756.0,95744.0,0.1293]
[1734886854875,0.15,95755.0,95744.0,0.1293]
[1734886855026,0.15,95753.0,95744.0,0.1293]
[1734886855223,0.1013084,95752.0,95744.0,0.1293]
[1734886855425,0.15,95751.0,95744.0,0.1293]
[1734886855952,0.01066012,95750.0,95744.0,0.1293]
[1734886856495,0.01066012,95749.0,95744.0,0.1293]
[1734886856698,0.01066012,95748.0,95744.0,0.1293]
[1734886857383,0.01066012,95750.0,95744.0,0.1233]
[1734886857787,0.01066012,95749.0,95744.0,0.1233]
[1734886858201,0.01066012,95748.0,95744.0,0.1233]
[1734886858856,0.01066012,95747.0,95744.0,0.1233]
[1734886859049,0.01066012,95747.0,95744.0,0.1243]
[1734886859271,0.01066012,95746.0,95744.0,0.1243]
[1734886859428,0.01066012,95746.0,95744.0,0.1233]
[1734886859630,0.01066012,95746.0,95744.0,0.1243]
[1734886859838,0.01066012,95745.0,95744.0,0.1233]
[1734886860061,0.01066012,95745.0,95744.0,0.1223]
[1734886862094,0.01066012,95745.0,95744.0,0.1243]
[1734886862309,0.01066012,95745.0,95744.0,0.1223]
[1734886862709,0.01066012,95745.0,95744.0,0.1253]
[1734886862911,0.01066012,95745.0,95744.0,0.1223]
[1734886863128,0.01066012,95745.0,95744.0,0.1163]
[1734886863394,0.01066012,95745.0,95744.0,0.1203]
[1734886864932,0.15,95751.0,95744.0,0.1203]
[1734886865783,0.15,95751.0,95744.0,0.1163]
[1734886866187,0.15,95751.0,95744.0,0.1173]
[1734886866390,0.15,95751.0,95744.0,0.1163]
[1734886866736,0.01066148,95750.0,95744.0,0.1163]
[1734886867442,0.01066148,95749.0,95744.0,0.1103]
[1734886868387,0.208927,95727.0,95710.0,0.13841284]
[1734886868600,0.208955,95714.0,95710.0,0.13841284]
[1734886868811,0.4602634,95714.0,95710.0,0.13841284]
[1734886869443,0.47066156,95714.0,95713.0,8.57e-05]
[1734886870066,0.47066156,95714.0,95713.0,0.0020857]
[1734886870476,0.59366156,95714.0,95713.0,0.0020857]
[1734886870885,0.59366156,95714.0,95713.0,8.57e-05]
[1734886872355,0.208989,95699.0,95691.0,0.0747713]
[1734886872580,0.208981,95703.0,95691.0,0.28382942]
[1734886872793,0.1013084,95702.0,95691.0,0.28382942]
[1734886873007,0.11195131,95702.0,95691.0,0.28382942]
[1734886873222,0.208984,95701.0,95691.0,0.28382942]
[1734886873438,0.01064291,95702.0,95697.0,0.208992]
[1734886873810,0.01064291,95700.0,95697.0,0.208992]
[1734886874021,0.208999,95694.0,95691.0,0.07482542]
[1734886874588,0.208988,95699.0,95691.0,0.07482542]
[1734886874789,0.01064291,95698.0,95691.0,0.07482542]
[1734886875971,0.1013084,95702.0,95691.0,0.07482542]
[1734886875972,0.208987,95700.0,95691.0,0.07482542]
[1734886876211,0.01064291,95701.0,95691.0,0.07482542]
[1734886876870,0.208986,95700.0,95691.0,0.07482542]
[1734886877394,0.211986,95700.0,95691.0,0.06882542]
[1734886877629,0.208986,95700.0,95691.0,0.06882542]
[1734886878045,0.01064291,95701.0,95692.0,0.209003]
[1734886878250,0.21962891,95700.0,95691.0,0.06882542]
[1734886879011,0.208986,95700.0,95691.0,0.06882542]
[1734886879245,0.01064291,95701.0,95691.0,0.27782942]
[1734886879415,0.001,95700.0,95691.0,0.27782942]
[1734886879838,0.01032373,95703.0,95691.0,0.27782942]
[1734886880046,0.001,95700.0,95691.0,0.27782942]
[1734886880566,0.208988,95699.0,95691.0,0.06882542]
[1734886880774,0.417976,95699.0,95691.0,0.06882542]
[1734886880977,0.42861891,95699.0,95691.0,0.06882542]
[1734886881176,0.208999,95695.0,95691.0,0.06882542]
[1734886881379,0.3103084,95694.0,95691.0,5.412e-05]
[1734886881544,0.5193084,95694.0,95691.0,5.412e-05]
[1734886881745,0.01064291,95693.0,95691.0,5.412e-05]
[1734886881940,0.3103114,95692.0,95691.0,0.00013972]
[1734886882403,0.209016,95686.0,95682.0,0.04162532]
[1734886882574,0.209016,95686.0,95682.0,0.04216663]
[1734886883178,0.209016,95686.0,95682.0,0.00054131]
[1734886884190,0.418033,95686.0,95682.0,0.00054131]
[1734886885035,0.209021,95684.0,95682.0,0.00054131]
[1734886885783,0.1013084,95683.0,95682.0,0.00054131]
[1734886885992,0.2513084,95683.0,95682.0,0.00054131]
[1734886886415,0.2743084,95683.0,95682.0,0.00054131]
[1734886886852,0.3743084,95683.0,95682.0,0.00054131]
[1734886887052,0.3783084,95683.0,95682.0,0.00054131]
[1734886887250,0.418126,95665.0,95658.0,0.07476941]
[1734886887477,0.25,95682.0,95658.0,0.07488833]
[1734886887686,0.209073,95661.0,95658.0,0.07488833]
[1734886889169,0.209072,95661.0,95658.0,0.07488833]
[1734886890159,0.211072,95661.0,95658.0,0.07488833]
[1734886890404,0.002,95661.0,95658.0,0.07488833]
[1734886890652,0.002,95661.0,95659.0,0.0472]
[1734886890891,0.002,95661.0,95660.0,0.1821536]
[1734886891942,0.002,95661.0,95660.0,0.20272698]
[1734886892460,0.0106214,95693.0,95685.0,0.127]
[1734886892706,0.0106214,95689.0,95685.0,0.127]
[1734886893173,0.0106214,95688.0,95685.0,0.127]
[1734886893602,0.0106214,95687.0,95685.0,0.127]
[1734886893917,0.0106214,95687.0,95685.0,0.13]
[1734886894148,0.0106214,95686.0,95685.0,0.127]
[1734886895609,0.0106214,95686.0,95685.0,0.13]
[1734886895841,0.0106214,95686.0,95685.0,0.127]
[1734886896348,0.0106214,95686.0,95685.0,0.129]
[1734886896855,0.0106214,95686.0,95685.0,0.23135347]
[1734886897096,0.0106214,95686.0,95685.0,0.2283084]
[1734886897354,0.0106214,95699.0,95698.0,0.20899]
[1734886897598,0.0106214,95699.0,95698.0,0.28279]
[1734886898585,0.01084951,95699.0,95698.0,0.28279]
[1734886899515,0.01084951,95699.0,95698.0,0.28579]
[1734886902388,0.01084951,95699.0,95698.0,0.27979]
[1734886903337,0.01084951,95699.0,95698.0,0.003]
[1734886904363,0.01084951,95699.0,95691.0,0.209006]
[1734886905244,0.00054172,95699.0,95691.0,0.209006]
[1734886905471,0.00071312,95699.0,95691.0,0.209006]
[1734886907449,0.00071312,95699.0,95691.0,0.203006]
[1734886908980,0.00071312,95699.0,95696.0,0.208994]
[1734886909390,0.00071312,95699.0,95696.0,0.417988]
[1734886910273,0.00071312,95699.0,95698.0,0.20899]
[1734886910274,0.00171312,95699.0,95698.0,0.20899]
[1734886910675,0.00071312,95699.0,95698.0,0.20899]
[1734886911085,0.00071312,95699.0,95687.0,0.0498]
[1734886911318,0.00071312,95699.0,95688.0,0.0766]
[1734886911516,0.20899,95698.0,95696.0,0.003]
[1734886912132,0.01065033,95697.0,95696.0,0.003]
[1734886912538,0.01065033,95697.0,95688.0,0.0736]
[1734886912942,0.208995,95696.0,95688.0,0.0736]
[1734886913162,0.21964533,95696.0,95688.0,0.0736]
[1734886913939,0.01065033,95695.0,95688.0,0.0736]
[1734886914349,0.208995,95696.0,95688.0,0.0736]
[1734886914350,0.01065033,95694.0,95688.0,0.0736]
[1734886914757,0.208995,95696.0,95688.0,0.0736]
[1734886914758,0.01065033,95693.0,95688.0,0.0736]
[1734886915387,0.209003,95692.0,95677.0,0.258835]
[1734886915593,0.209018,95686.0,95682.0,0.0766]
[1734886915798,0.1013084,95685.0,95661.0,0.0766]
[1734886916011,0.1013084,95685.0,95662.0,0.0931696]
[1734886916012,0.15,95684.0,95662.0,0.0931696]
[1734886916226,0.209062,95666.0,95662.0,0.0931696]
[1734886916439,0.1013084,95665.0,95662.0,0.0931696]
[1734886916850,0.01065033,95664.0,95662.0,0.0931696]
[1734886917461,0.01065033,95663.0,95662.0,0.08728852]
[1734886917807,0.01065033,95663.0,95662.0,0.00111892]
[1734886918005,0.01065033,95663.0,95662.0,0.00011892]
[1734886918236,0.01065033,95663.0,95662.0,0.00111892]
[1734886918480,0.01065033,95663.0,95662.0,0.00011892]
[1734886919635,0.02121156,95663.0,95662.0,0.00011892]
[1734886919876,0.01065033,95663.0,95662.0,0.00220462]
[1734886920292,0.01065033,95663.0,95662.0,0.00020462]
[1734886920513,0.13695873,95663.0,95662.0,0.00020462]
[1734886922329,0.11395873,95663.0,95662.0,0.00020462]
[1734886923233,0.209086,95655.0,95642.0,0.28034372]
[1734886923426,0.209086,95655.0,95642.0,0.28050642]
[1734886924290,0.209078,95658.0,95642.0,0.07139542]